Cogmind - Beta 10.2 @@@ ROGUE MODE // 2020.12.21 @ 18:38:44 Player: WeirdFoe Result: Destroyed by S-10 Pest with Light Assault Rifle Performance ------------- Evolutions (2) 1000 Regions Visited (6) 1200 Robots Destroyed (19) 95 Value Destroyed (493) 493 Prototype IDs (2) 40 Alien Tech Used (0) 0 Bonus (300) 300 TOTAL SCORE: 3128 Bonus ------- Aligned with FarCom 300 Cogmind --------- Core Integrity 0/550 Matter 300/300 Energy 99/100 System Corruption 0% Temperature Cool (0) Movement Core (50) Location -8/Materials Parts ------- > --- POWER (1) -------- (None) > --- PROPULSION (2) --- (None) > --- UTILITY (5) ------ (None) > --- WEAPON (3) ------- (None) > --- INVENTORY (4) ---- Large Storage Unit Superbattery (1860) Datajack Peak State ------------ > --- POWER ------------ Deuterium Engine > --- PROPULSION ------- Aluminum Leg Aluminum Leg > --- UTILITY ---------- High-capacity Storage Unit Sensor Array Light Armor Plating > --- WEAPON ----------- Medium Laser Latent Energy Streamer Assault Rifle > --- INVENTORY -------- Deuterium Engine Aluminum Leg Aluminum Leg Wheel Heat Sink Heat Sink Large Storage Unit Large Storage Unit High-capacity Battery Medium Matter Pod Datajack [Rating: 21] Favorites ----------- Power Deuterium Engine Engine Deuterium Engine Propulsion Aluminum Leg Treads Light Treads Leg Aluminum Leg Wheel Wheel Utility Sensor Array Device Sensor Array Storage Large Storage Unit Processor Visual Processing Unit Protection Light Armor Plating Weapon Medium Laser Energy Gun Medium Laser Energy Cannon Latent Energy Streamer Ballistic Gun Assault Rifle Launcher Shock Bomb Launcher Build | -11 -10 -9 -9 -9 -8 -8 ------- Run | Scr Mat Mat Min Exi Min Mat Slots Evolved 4 | . . 2 . . . 2 Power . | . . . . . . . Propulsion . | . . . . . . . Utility 3 | . . 1 . . . 2 Weapon 1 | . . 1 . . . . Parts Attached 33 | 7 5 3 . 6 5 7 Power 5 | 1 1 1 . . . 2 Engine 5 | 1 1 1 . . . 2 Core . | . . . . . . . Reactor . | . . . . . . . Propulsion 7 | 2 . . . 1 3 1 Treads 1 | . . . . . . 1 Leg 5 | 2 . . . 1 2 . Wheel 1 | . . . . . 1 . Hover . | . . . . . . . Flight . | . . . . . . . Utility 12 | 1 3 1 . 3 2 2 Device 3 | . 1 . . . 2 . Storage 7 | 1 1 . . 3 . 2 Processor 1 | . 1 . . . . . Hackware . | . . . . . . . Protection 1 | . . 1 . . . . Artifact . | . . . . . . . Weapon 9 | 3 1 1 . 2 . 2 Energy Gun 5 | 1 1 1 . 1 . 1 Energy Cannon 1 | . . . . 1 . . Ballistic Gun 2 | 2 . . . . . . Ballistic Cannon . | . . . . . . . Launcher 1 | . . . . . . 1 Special Weapon . | . . . . . . . Impact Weapon . | . . . . . . . Slashing Weapon . | . . . . . . . Piercing Weapon . | . . . . . . . Special Melee Weapon . | . . . . . . . Unidentified Prototypes 2 | . . . . 2 . . Parts Lost 15 | . . . . . 12 3 Power 2 | . . . . . 1 1 Propulsion 5 | . . . . . 5 . Utility 3 | . . . . . 3 . Weapon 5 | . . . . . 3 2 Highest Loss Streak 9 | . . . . . 9 3 Average Slot Usage (%) 88 | . 98 100 100 100 75 10 Engine 10 | . 14 11 11 11 7 1 Leg 20 | . 28 22 22 22 17 . Device 10 | . 12 11 11 11 10 5 Storage 10 | . 14 11 11 11 11 1 Protection 8 | . . 11 11 11 6 . Energy Gun 17 | . 7 22 22 21 12 . Ballistic Gun 10 | . 21 11 11 11 6 . Naked Turns 46 | . . . . . 1 45 Heaviest Build 51 | 12 26 35 35 51 51 29 Greatest Support 20 | 20 20 20 20 20 20 3 Greatest Overweight (x) 9 | . 1 1 1 2 4 9 Average Overweight (x) 1 | . . 1 1 1 2 . Largest Inventory Capacity 12 | 6 10 10 10 12 12 10 Average Capacity 9 | 5 8 10 10 11 11 4 Most Carried 12 | 4 10 10 10 12 11 4 Average Carried 8 | 1 6 9 10 10 9 3 Final Capacity 12 | 6 10 10 10 12 4 4 Final Carried 11 | 3 10 10 10 11 4 3 Class Distribution -------------------- 66% | Tank 28% | Mutant 5% | Skirmisher Dominant Class ---------------- Mutant | -10/Materials Tank | -9/Materials Tank | -9/Mines Tank | -9/Exiles Skirmisher | -8/Mines Mutant | -8/Materials Resources | -11 -10 -9 -9 -9 -8 -8 ----------- Run | Scr Mat Mat Min Exi Min Mat Matter Collected 745 | 202 186 117 3 60 88 89 Remotely . | . . . . . . . Salvage Created 719 | . 210 267 30 . 88 124 Parts 41 | . 12 23 . . 3 3 Haulers Intercepted . | . . . . . . . Recyclers Shooed 2 | . . 1 . . . 1 Parts Field Recycled . | . . . . . . . Retrieved Matter . | . . . . . . . Parts Self-Destructed . | . . . . . . . Prevented . | . . . . . . . Kills | -11 -10 -9 -9 -9 -8 -8 ------- Run | Scr Mat Mat Min Exi Min Mat Combat Hostiles Destroyed 10 | . 1 5 . . 2 2 Guns 8 | . 1 5 . . 2 . AOE 1 | . . . . . . 1 Classes Destroyed 6 | . 5 1 . . . . Worker 4 | . 2 1 1 . . . Recycler 1 | . 1 . . . . . Operator 1 | . 1 . . . . . Watcher 3 | . 1 2 . . . . Grunt 9 | . 1 4 . . 2 2 Sentry 1 | . . 1 . . . . Best Kill Streak 4 | . 2 4 1 . 2 2 Combat Bots Only 2 | . 1 2 . . 2 2 Max Kills in Single Turn 1 | . 1 1 1 . 1 1 Gunslinging . | . . . . . . . Exploded 1 | . . . . . . 1 Melee . | . . . . . . . Uniques/NPCs Destroyed . | . . . . . . . Combat | -11 -10 -9 -9 -9 -8 -8 -------- Run | Scr Mat Mat Min Exi Min Mat Damage Taken 2037 | . 55 157 1 . 1065 759 Core 935 | . 10 60 . . 313 552 Absorbed by Shields . | . . . . . . . Core Remaining (%) 67 | 100 96 . . . 6 . Volleys Fired 52 | . 14 17 1 . 13 7 Largest 3 | . 2 3 3 . 3 1 Hottest 120 | . 70 120 120 . 120 36 Shots Fired 114 | . 28 51 3 . 25 7 Gun 107 | . 28 51 3 . 25 . Cannon . | . . . . . . . Launcher 7 | . . . . . . 7 Special . | . . . . . . . Kinetic 52 | . 21 17 1 . 13 . Thermal 55 | . 7 34 2 . 12 . Explosive . | . . . . . . . Electromagnetic 7 | . . . . . . 7 Robot Hit Streak 9 | . 4 9 1 . 7 2 Robot Miss Streak 3 | . 3 3 . . 2 1 Penetration Max . | . . . . . . . Secondary Targets . | . . . . . . . Shots Hit Robots 68 | . 16 30 1 . 17 4 Core Hits 38 | . 9 15 1 . 7 6 Critical Hits 1 | . 1 . . . . . Critical Kills 1 | . 1 . . . . . Critical Parts Destroyed . | . . . . . . . Melee Attacks . | . . . . . . . Impact . | . . . . . . . Slashing . | . . . . . . . Piercing . | . . . . . . . Sneak Attacks . | . . . . . . . Combat Hostiles . | . . . . . . . Follow-up Attacks . | . . . . . . . Damage Inflicted 1166 | . 174 373 15 . 227 377 Guns 737 | . 164 338 12 . 223 . Cannons . | . . . . . . . Explosions 349 | . . . . . . 349 Melee . | . . . . . . . Ramming 80 | . 10 35 3 . 4 28 Kinetic 317 | . 115 77 . . 125 . Thermal 420 | . 49 261 12 . 98 . Explosive . | . . . . . . . Electromagnetic 349 | . . . . . . 349 Impact . | . . . . . . . Slashing . | . . . . . . . Piercing . | . . . . . . . Highest Corruption . | . . . . . . . Average Corruption . | . . . . . . . Corruption Purged . | . . . . . . . Overload Shots . | . . . . . . . Overflow Damage 3 | . . . . . . 3 Projectiles . | . . . . . . . Explosions 3 | . . . . . . 3 Melee . | . . . . . . . Knockbacks . | . . . . . . . Impact . | . . . . . . . Kinetic . | . . . . . . . Secondary . | . . . . . . . Self-Inflicted Damage 57 | . 5 3 1 . 2 46 Shots 2 | . . . . . . 2 Rammed 9 | . 1 2 1 . 1 4 Targets Rammed 12 | . 1 5 1 . 1 4 Kicked 3 | . . 3 . . . . Crushed . | . . . . . . . Highest Temperature 320 | . 45 320 63 . 261 5 Average Temperature 103 | . 22 107 34 . 164 3 Received Heat Transfer 834 | . 18 69 . . 432 315 Effects 4 | . . 3 . . 1 . Energy Bleed 1 | . . 1 . . . . Interference 3 | . . 2 . . 1 . Siege Activations . | . . . . . . . Robots Corrupted 1 | . . . . . . 1 Combat Hostiles 1 | . . . . . . 1 Parts Fried 1 | . . . . . . 1 Impact Corruptions . | . . . . . . . Robots Melted . | . . . . . . . Combat Hostiles . | . . . . . . . Parts Melted 5 | . 1 4 . . . . Heat Transferred 1258 | . 148 777 37 . 296 . Parts Sabotaged . | . . . . . . . Parts Stolen . | . . . . . . . Parts Stripped . | . . . . . . . Power Chain Reactions . | . . . . . . . Missiles Intercepted . | . . . . . . . Alert | -11 -10 -9 -9 -9 -8 -8 ------- Run | Scr Mat Mat Min Exi Min Mat Peak Influence 249 | . 76 249 29 . 20 110 Initial 31 | . . 31 24 . . . Average 50 | . 40 100 24 . 1 30 Maximum Alert Level 1 | . . 1 . . . . Low Security (%) 94 | 100 100 85 100 . 100 100 Level 1 5 | . . 15 . . . . Level 2 . | . . . . . . . Level 3 . | . . . . . . . Level 4 . | . . . . . . . Level 5 . | . . . . . . . High Security . | . . . . . . . Max Security . | . . . . . . . Squads Dispatched 3 | . 1 . . . . 2 Investigation . | . . . . . . . Extermination . | . . . . . . . Reinforcement 3 | . 1 . . . . 2 Assault . | . . . . . . . Garrison . | . . . . . . . Intercept . | . . . . . . . Construction Impeded 1 | . . . . . . 1 Haulers Reinforced . | . . . . . . . Stealth | -11 -10 -9 -9 -9 -8 -8 --------- Run | Scr Mat Mat Min Exi Min Mat Distress Signals 1 | . . . . . . 1 Communications Jammed . | . . . . . . . Distress Signals . | . . . . . . . Times Spotted 39 | . 3 12 . . 7 17 Peak Tracking Total 10 | . 1 4 . . 4 10 Tactical Retreats 3 | . . . . . 1 2 Traps | -11 -10 -9 -9 -9 -8 -8 ------- Run | Scr Mat Mat Min Exi Min Mat Traps Triggered 1 | . 1 . . . . . Indirectly . | . . . . . . . Trap Hack Attempts . | . . . . . . . Triggered . | . . . . . . . Disarmed . | . . . . . . . Reprogrammed . | . . . . . . . Reused . | . . . . . . . Traps Extracted . | . . . . . . . Installed . | . . . . . . . Triggered . | . . . . . . . Machines | -11 -10 -9 -9 -9 -8 -8 ---------- Run | Scr Mat Mat Min Exi Min Mat Machines Disabled . | . . . . . . . Max in Single Turn . | . . . . . . . Machines Sabotaged . | . . . . . . . Garrisons Compromised . | . . . . . . . Overloaded Fab Kills . | . . . . . . . Fab Network Shutdowns . | . . . . . . . Hacking | -11 -10 -9 -9 -9 -8 -8 --------- Run | Scr Mat Mat Min Exi Min Mat Machines Accessed 4 | . 2 2 . . . . Terminals 4 | . 2 2 . . . . Fabricators . | . . . . . . . Repair Stations . | . . . . . . . Recycling Units . | . . . . . . . Scanalyzers . | . . . . . . . Garrison Access . | . . . . . . . Total Hacks 5 | . 3 2 . . . . Successful 4 | . 2 2 . . . . Failed 1 | . 1 . . . . . Catastrophic . | . . . . . . . Database Lockouts . | . . . . . . . Manual 6 | . 3 2 . 1 . . Terminals 5 | . 3 2 . . . . Fabricators . | . . . . . . . Repair Stations . | . . . . . . . Recycling Units . | . . . . . . . Scanalyzers . | . . . . . . . Garrison Access . | . . . . . . . Terminal Hacks 4 | . 2 2 . . . . Locate Traps 4 | . 2 2 . . . . Fabricator Hacks . | . . . . . . . Repair Station Hacks . | . . . . . . . Recycling Unit Hacks . | . . . . . . . Scanalyzer . | . . . . . . . Garrison Access Hacks . | . . . . . . . Unauthorized Hacks . | . . . . . . . Terminals . | . . . . . . . Fabricators . | . . . . . . . Repair Stations . | . . . . . . . Recycling Units . | . . . . . . . Scanalyzers . | . . . . . . . Garrison Access . | . . . . . . . Data Cores Recovered . | . . . . . . . Used . | . . . . . . . Hacking Detections . | . . . . . . . Full Trace Events . | . . . . . . . Feedback Events . | . . . . . . . Feedback Blocked . | . . . . . . . Robot Schematics Acquired . | . . . . . . . Robots Built . | . . . . . . . Matter . | . . . . . . . Time . | . . . . . . . Total Robot Build Rating . | . . . . . . . Part Schematics Acquired . | . . . . . . . Parts Built . | . . . . . . . Matter . | . . . . . . . Time . | . . . . . . . Total Part Build Rating . | . . . . . . . Parts Repaired . | . . . . . . . Time . | . . . . . . . Parts Recycled . | . . . . . . . Recycled Matter . | . . . . . . . Retrieved Matter . | . . . . . . . Retrieved Components . | . . . . . . . Parts Scanalyzed . | . . . . . . . Part Schematics Acquired . | . . . . . . . Parts Damaged . | . . . . . . . Bothacking | -11 -10 -9 -9 -9 -8 -8 ------------ Run | Scr Mat Mat Min Exi Min Mat Used RIF Installer . | . . . . . . . Robots Hacked . | . . . . . . . Non-combat . | . . . . . . . Combat . | . . . . . . . Robot Hacks Applied . | . . . . . . . Relay Couplers Released . | . . . . . . . Robots Rewired . | . . . . . . . Allies Hacked . | . . . . . . . Hacks Repelled . | . . . . . . . Allies | -11 -10 -9 -9 -9 -8 -8 -------- Run | Scr Mat Mat Min Exi Min Mat Total Allies . | . . . . . . . Largest Group . | . . . . . . . Highest-Rated Group . | . . . . . . . Highest-Rated Ally . | . . . . . . . Total Orders . | . . . . . . . Ally Attacks . | . . . . . . . Total Damage . | . . . . . . . Kills . | . . . . . . . Allies Corrupted . | . . . . . . . Allies Melted . | . . . . . . . Intel | -11 -10 -9 -9 -9 -8 -8 ------- Run | Scr Mat Mat Min Exi Min Mat Robot Analysis Total . | . . . . . . . Derelict Logs Recovered . | . . . . . . . Drone Launches . | . . . . . . . Drone Recoveries . | . . . . . . . Exploration | -11 -10 -9 -9 -9 -8 -8 ------------- Run | Scr Mat Mat Min Exi Min Mat Turns Passed 2249 | 62 285 500 135 850 214 203 Spaces Moved 1096 | 41 157 173 81 466 60 118 Core 124 | 2 . . . . 4 118 Treads . | . . . . . . . Legs 945 | 39 157 173 81 466 29 . Wheels 27 | . . . . . 27 . Hover . | . . . . . . . Flight . | . . . . . . . Fastest Speed 50 | 50 120 150 150 120 50 50 Average Speed 145 | 116 134 150 150 172 149 53 Slowest Speed 500 | 120 150 150 150 180 240 500 Overloaded Moves . | . . . . . . . Propulsion Burnouts . | . . . . . . . Robots Hopped . | . . . . . . . Cave-ins Triggered . | . . . . . . . Exploration Rate (%) 32 | 4 33 25 26 90 31 20 Regions Visited 6 Branch Regions 3 Pre-discovered Areas . | . . . . . . . Known Exits Taken . | . . . . . . . Unknown Exits Taken 6 | 1 1 1 1 1 1 . Scrap Searched . | . . . . . . . Spaces Dug . | . . . . . . . Terrain Destroyed . | . . . . . . . Melee . | . . . . . . . Projectile . | . . . . . . . AOE . | . . . . . . . Terrain Rammed . | . . . . . . . Walls Destroyed . | . . . . . . . Machines Disabled . | . . . . . . . Actions | -11 -10 -9 -9 -9 -8 -8 --------- Run | Scr Mat Mat Min Exi Min Mat Total 1649 | 52 206 374 92 513 160 252 Wait 402 | . 12 168 10 24 81 107 Move 1090 | 40 156 172 80 465 59 118 Hop . | . . . . . . . Pick Up 32 | 4 11 5 . 10 . 2 Fast Attach 17 | 6 3 . . 4 1 3 Attach 10 | . . 2 . . 4 4 Detach 4 | . . . . 1 . 3 Swap 6 | 1 2 1 . 2 . . Drop 24 | 1 7 4 . 7 1 4 Fire 52 | . 14 17 1 . 13 7 Melee . | . . . . . . . Ram 4 | . . . . . . 4 Kick 8 | . 1 5 1 . 1 . Crush . | . . . . . . . Escape Stasis . | . . . . . . . Rewire . | . . . . . . . Trap . | . . . . . . . Miscellaneous . | . . . . . . . Route ------- -11/Scrapyard -10/Materials -9/Materials -9/Mines -9/Exiles (discovered 2 exits: [*Min x2]) -8/Mines -8/Materials History --------- Turn | Location | Event 20 | -11/Scrapyard | Discovered new exit (range 15) 63 | -11/Scrapyard | Entered Materials 298 | -10/Materials | Discovered new exit (range 16) 308 | -10/Materials | Build established: Mutant 348 | -10/Materials | Entered another Materials area 348 | -9/Materials | Evolved 2 slots: Utility x1, Weapon x1 669 | -9/Materials | Build established: Tank 840 | -9/Materials | Discovered new exit (range 6) 848 | -9/Materials | Entered Mines 977 | -9/Mines | Deemed a non-threat by the Exiles lab entrance 977 | -9/Mines | Discovered new exit (range 5) 983 | -9/Mines | Entered Exiles 1016 | -9/Exiles | Discovered new exit (range 15) 1060 | -9/Exiles | Met 8R-AWN 1082 | -9/Exiles | Met EX-HEX 1188 | -9/Exiles | Met EX-DEC 1247 | -9/Exiles | Visited The Gauntlet 1494 | -9/Exiles | Met EX-BIN 1519 | -9/Exiles | Aligned with FarCom system 1521 | -9/Exiles | Given EX-Vault access code 1572 | -9/Exiles | Opened EX-Vault 1579 | -9/Exiles | Found Prototype Energy Cannon 1579 | -9/Exiles | Identified Latent Energy Streamer 1591 | -9/Exiles | Found Prototype Storage 1591 | -9/Exiles | Identified Superbattery 1664 | -9/Exiles | Exiles lab attacked by MAIN.C 1808 | -9/Exiles | Discovered new exit (range 10) 1833 | -9/Exiles | Left Exiles lab with Superbattery 1833 | -9/Exiles | Entered Mines 2017 | -8/Mines | Lost 9 parts (1p3n2u3w) 2018 | -8/Mines | Discovered new exit (range 14) 2028 | -8/Mines | Core integrity fell below 50% 2045 | -8/Mines | Core integrity fell below 20% 2047 | -8/Mines | Entered Materials 2047 | -8/Materials | Evolved 2 slots: Utility x2 2074 | -8/Materials | Lost 3 parts (2n1u) 2216 | -8/Materials | Core integrity fell below 50% 2234 | -8/Materials | Core integrity fell below 20% 2250 | -8/Materials | Destroyed by S-10 Pest with Light Assault Rifle Last Messages --------------- 02214_ Dropped Superbattery. 02215_ Acquired Superbattery. 02218_ U-05 Engineer lays Concrete. 02218_ Acquired Particle Gun. 02219_ U-05 Engineer lays Concrete. 02219_ Acquired 60 matter. 02221_ Slammed into U-05 Engineer. 02221_ ALERT: Construction progress impeded, dispatching reinforcements to local area. 02221_ Particle Gun destroyed. 02222_ Acquired 29 matter. 02222_ K-01 Serf collects debris. 02224_ Slammed into K-01 Serf. 02228_ K-01 Serf cleans the Recycling Unit. 02231_ O-16 Technician sends out distress signal. 02231_ O-16 Technician: "IFF HANDSHAKE FAILED. SECURING TERMINAL." 02237_ K-01 Serf cleans the Recycling Unit. 02240_ ALERT: Hostiles spotted, dispatching reinforcements to Terminal M003. 02241_ K-01 Serf cleans the Recycling Unit. Map ----- +----------------------------------------------------+ | ?????????????????????????????????????????????? | | ?????????????????????????????????????????+???? | | ???????????????????????????????????????? ???? | | ???????????????????????????????????????" ?#??? | | ??????????????????????????????????????G #??? | | ?????????????????????????????????????""" #??? | | ????????????????????????????"??????? #??? | | ??????????????????? ???????? ??????? ]???? | | ???????????????????! #######+########/###### | | ?????????????????? | | ????????????????????? | | ????????????????????????????# """ | | ????????????????????????????# """ "Y" | | ????????????????????????????# """"" | | ????????????????????????????# """"" | | ??????????????????Y?""??????# w"""""g | | ????????????????????""" ????# """ | | ??????????????????# """ [??# ggg | | ??????????????????# # ] | | ??????????????????#* + g##########+### | | ??????????????????# ""T"" # #??????? ? | | ??????????????????????""""??#lg #????? | | ???????????????????????#???## ##???# | | ?????? ################## #???# | | ??????s #???# | | ?????? @ #???# | | ??????ss #???# | | ???????# ############## #???# | | ???????# ????????????????#######???######### | | ?????????????????????????????????????????????? | | ?????????????????????????????????????????????? | | ?????????????????????????????????????????????? | | ?????????????????????????????????????????????? | | ?????????????????????????????????????????????? | | ?????????????????????????????????????????????? | | ?????????????????????????????????????????????? | | ?????????????????????????????????????????????? | | ?????????????????????????????????????????????? | | ?????????????????????????????????????????????? | | ?????????????????????????????????????????????? | | ?????????????????????????????????????????????? | | ?????????????????????????????????????????????? | | ?????????????????????????????????????????????? | | ?????????????????????????????????????????????? | | | | | | | | | | | | | +----------------------------------------------------+ Best States ------------- Heat Dissipation 41 Energy Generation 14 Energy Capacity 2275 Matter Stores 300 Matter Capacity 300 Sight Range 18 Robot Scan Range 10 Terrain Scan Density 10 Armor Coverage 150 Evasion (%) 50 Recoil Reduction 1 Item Schematics ----------------- None Robot Schematics ------------------ None Fabricated ------------ Nothing Alien Tech Used ----------------- None Achievements -------------- Close Call Challenges ------------ None Game ------ Seed HugeGhostFalx Manual? 0 Play Time 00:25:15 Cumulative 7.5 hours Start 2020.12.21 @ 18:10:50 End 2020.12.21 @ 18:38:44 Sessions 1 Manual Loads 0 Difficulty Rogue Special Mode None Game No. 11 Rogue 11 Adventurer 0 Explorer 0 Win Type - Total 0 Types 0/0/0/0/0/0/0/0/0 Lore% 10 Gallery% 24 Achievement% 17 Wizard Run 0 Options --------- ASCII 1 Keyboard 0 Movement Numpad Keybinds 0 Fullscreen 1 Font 18/X11Bold Map View 76x50 Tactical HUD 1 Map Filters NONE Filters NONE Steam 0 RUN: ed9ba8f1-e114-4095-8a89-8cba49303de0